bitfinex/quotes_ETHUSD_20210701
["timestamp","ask_amount","ask_price","bid_price","bid_amount"]
[1625119188117,11.0,2216.2,2215.6,0.14]
[1625119189133,11.0,2216.2,2215.8,6.76691]
[1625119189236,11.0,2216.2,2215.5,9.02267]
[1625119189440,17.29795528,2216.2,2215.5,9.02267]
[1625119189734,11.0,2216.2,2215.5,9.02267]
[1625119190383,17.76755,2216.2,2215.5,9.02267]
[1625119190584,23.99858197,2216.2,2215.5,9.02267]
[1625119190838,23.99858197,2216.2,2215.6,0.06]
[1625119190933,6.34027053,2215.9,2215.3,9.02359]
[1625119191031,4.1376,2215.9,2215.3,9.02359]
[1625119191530,4.1376,2215.9,2215.4,0.04]
[1625119191836,4.1376,2215.9,2215.3,9.02359]
[1625119192432,10.90608,2215.9,2215.3,9.02359]
[1625119197315,4.1376,2215.9,2215.3,9.02359]
[1625119197419,10.15216,2216.1,2215.3,9.02359]
[1625119197566,10.15216,2216.1,2215.4,0.2]
[1625119197664,3.38424,2216.1,2215.4,0.2]
[1625119197963,3.38424,2216.1,2215.5,0.14]
[1625119198471,10.15189,2216.1,2215.5,6.90757]
[1625119198765,10.15189,2216.1,2215.6,0.04]
[1625119198964,10.15189,2216.1,2215.7,0.1]
[1625119199168,10.15189,2216.1,2215.3,0.14]
[1625119200414,10.15189,2216.1,2215.6,6.76738]
[1625119200613,10.15189,2216.1,2215.7,0.06]
[1625119201112,10.15189,2216.1,2215.6,6.90738]
[1625119201215,10.15189,2216.1,2215.6,6.76738]
[1625119201313,10.15189,2216.1,2215.4,0.14]
[1625119201417,9.76239454,2216.1,2215.5,6.76771]
[1625119201516,9.76239454,2216.1,2215.4,0.14]
[1625119201715,12.13578378,2216.1,2215.2,9.02378]
[1625119202563,6.76882,2215.7,2215.1,0.14]
[1625119202661,11.78672,2215.7,2215.1,0.14]
[1625119202760,15.17121,2215.7,2215.1,0.14]
[1625119202961,15.17121,2215.7,2215.2,0.1]
[1625119203262,15.17121,2215.7,2215.1,0.14]
[1625119204090,8.40239,2215.7,2215.1,6.90879]
[1625119204187,1.3429,2215.8,2215.1,11.91879]
[1625119204345,6.28783423,2215.9,2215.1,11.91879]
[1625119204442,9.80727608,2216.1,2215.2,0.2]
[1625119204745,9.80727608,2216.1,2215.3,0.14]
[1625119205243,6.76823,2215.9,2215.3,6.90832]
[1625119205348,3.38408,2216.1,2215.3,6.90832]
[1625119205444,3.38408,2216.1,2215.4,0.06]
[1625119205545,11.0,2216.2,2215.4,0.06]
[1625119205645,11.0,2216.2,2215.5,0.34]
[1625119205846,11.0,2216.2,2215.5,0.14]
[1625119206446,17.76752,2216.2,2215.6,6.76723]
[1625119206654,17.76752,2216.2,2215.7,0.04]
[1625119207156,17.76752,2216.2,2215.6,6.90723]
[1625119207755,11.0,2216.2,2215.6,6.90723]
[1625119208359,0.006,2216.1,2215.6,6.90723]
[1625119211059,0.006,2216.1,2215.7,0.06]
[1625119211459,0.006,2216.1,2215.6,0.14]
[1625119211975,6.23246257,2216.1,2215.4,9.16297]
[1625119212060,9.84087751,2216.1,2215.4,9.16297]
[1625119212159,9.74997487,2216.1,2215.4,9.02297]
[1625119212263,9.74686904,2216.1,2215.4,9.02297]
[1625119212360,3.5473,2216.1,2215.4,9.02297]
[1625119212461,9.9282338,2216.1,2215.4,9.02297]
[1625119212659,3.5473,2216.1,2215.4,9.02297]
[1625119213060,3.5473,2216.1,2215.5,0.18]
[1625119213162,0.006,2216.1,2215.5,0.18]
[1625119213338,0.006,2216.1,2215.6,0.06]
[1625119213435,0.006,2216.1,2215.4,0.14]
[1625119214736,0.006,2216.1,2215.4,6.9079]
[1625119215566,0.006,2216.1,2215.5,0.04]
[1625119215872,0.006,2216.1,2215.5,6.80738]
[1625119218571,0.006,2216.1,2215.5,6.76738]
[1625119219047,6.20085669,2216.1,2215.5,6.76738]
[1625119219147,0.006,2216.1,2215.5,6.76738]
[1625119220458,0.006,2216.1,2215.6,0.08]
[1625119220656,0.006,2216.1,2215.4,0.14]
[1625119221459,0.006,2216.1,2215.6,6.76745]
[1625119221558,6.19347633,2216.1,2215.6,6.76745]
[1625119221657,0.006,2216.1,2215.6,6.76745]
[1625119222057,0.006,2216.1,2215.4,0.14]
[1625119222304,6.29348957,2216.1,2215.4,0.14]
[1625119222457,6.29348957,2216.1,2215.5,0.04]
[1625119223057,13.06121957,2216.1,2215.5,0.04]
[1625119223160,5.01,2215.9,2214.9,0.12343546]
[1625119223259,7.7470924,2215.8,2214.9,0.12343546]
[1625119223360,7.35417871,2215.8,2214.9,0.12343546]
[1625119223455,10.8082,2215.9,2214.9,0.12343546]
[1625119223556,7.13405829,2215.8,2214.7,9.02382]
[1625119223956,7.14418617,2215.8,2214.8,0.06]
[1625119224057,5.01,2215.6,2214.8,0.06]
[1625119224160,5.01,2215.6,2214.6,0.26399377]
[1625119224161,21.02158,2215.6,2214.6,0.26399377]
[1625119224261,6.79044958,2215.2,2214.6,0.12399377]
[1625119224356,10.18334958,2215.2,2214.6,0.12399377]
[1625119224456,10.18334958,2215.2,2214.5,6.97410265]
[1625119224660,3.3929,2215.2,2214.5,6.97410265]
[1625119224759,3.3929,2215.2,2214.6,0.12]
[1625119224962,3.3929,2215.2,2214.6,6.0369871]
[1625119225164,3.3929,2215.2,2214.6,0.12]
[1625119225765,10.16325,2215.2,2214.5,6.85]
[1625119226568,10.16325,2215.2,2214.3,0.12421602]
[1625119226916,5.01,2215.0,2214.3,0.12421602]
[1625119227018,6.77168,2214.8,2214.3,0.12421602]
[1625119227319,6.77168,2214.8,2213.9,13.21818884]
[1625119227618,3.0122,2214.9,2214.0,0.2]
[1625119228320,3.0122,2214.9,2214.0,0.32511577]
[1625119228420,1.7539,2214.9,2214.0,0.32511577]
[1625119228631,6.77188,2214.7,2214.0,0.32511577]
[1625119228726,10.15548,2214.7,2214.0,0.12511577]
[1625119228925,7.483904,2214.7,2213.9,7.11504072]
[1625119229056,7.483904,2214.7,2213.9,7.06504072]
[1625119229161,7.483904,2214.7,2214.0,0.08]
[1625119229356,7.483904,2214.7,2214.0,6.02090968]
[1625119229756,7.483904,2214.7,2214.0,0.08]
[1625119229858,7.483904,2214.7,2214.0,6.03696115]
[1625119229957,7.483904,2214.7,2214.0,5.99003636]
[1625119230060,7.483904,2214.7,2214.0,0.08]
[1625119230260,7.483904,2214.7,2213.9,7.06504072]
[1625119230464,7.483904,2214.7,2213.9,13.71179]
[1625119230661,7.483904,2214.7,2214.0,5.95327837]
[1625119230759,7.483904,2214.7,2213.9,13.71179]
[1625119230861,7.483904,2214.7,2214.0,6.01195316]
[1625119231059,7.483904,2214.7,2214.1,0.12]
[1625119231417,7.483904,2214.7,2213.9,13.71179]
[1625119231719,7.483904,2214.7,2214.0,6.10343149]
[1625119231824,7.483904,2214.7,2214.0,6.06260713]
[1625119232018,7.483904,2214.7,2213.9,13.71179]
[1625119233019,7.483904,2214.7,2214.0,6.00826278]
[1625119233118,7.483904,2214.7,2213.9,13.71179]
[1625119233222,7.483904,2214.7,2214.0,5.96280713]
[1625119233319,3.3836,2214.7,2214.0,6.83159]
[1625119233883,3.15783588,2214.8,2214.0,6.83159]
[1625119234079,3.15783588,2214.8,2214.0,6.77159]
[1625119234480,6.77212,2214.7,2213.9,6.94]
[1625119234581,10.38752,2214.7,2213.9,6.94]
[1625119235683,8.04964,2214.7,2213.9,13.71202]
[1625119237127,14.57463314,2214.7,2213.9,13.71202]
[1625119237232,14.61228294,2214.7,2213.9,6.8]
[1625119237630,8.04964,2214.7,2213.9,6.8]
[1625119237828,8.04964,2214.7,2214.0,0.08]
[1625119238176,23.04964,2214.7,2214.0,0.08]
[1625119238275,23.04964,2214.7,2213.9,6.8]
[1625119238382,5.01,2214.5,2213.6,0.14]
[1625119238477,5.01,2214.5,2213.3,9.29698968]
[1625119238634,12.22468687,2214.4,2213.3,9.29698968]
[1625119238831,5.01,2214.4,2213.4,6.13870949]
[1625119238977,5.01,2214.4,2213.4,13.14870949]
[1625119239077,9.87111001,2214.6,2213.4,13.14870949]
[1625119239277,5.01,2214.4,2213.5,0.06]
[1625119239479,11.7833,2214.4,2213.5,6.8333]
[1625119240178,15.2859,2214.4,2213.5,6.8333]
[1625119240338,30.2859,2214.4,2213.3,9.17114]
[1625119240419,30.2859,2214.4,2213.3,15.16180993]
[1625119240518,30.2859,2214.4,2213.3,9.17114]
[1625119240618,30.2859,2214.4,2213.3,15.19797657]
[1625119242672,15.2859,2214.4,2213.3,15.19797657]
[1625119242882,15.2859,2214.4,2213.3,16.09382938]
[1625119242883,10.2759,2214.4,2213.3,16.09382938]
[1625119242991,6.7733,2214.4,2213.6,3.29]
[1625119243078,9.14300588,2214.8,2213.7,35.53840044]
[1625119243184,0.11303588,2214.8,2214.3,3.29]
[1625119243286,0.11303588,2214.8,2214.6,2.6]
[1625119243382,0.11303588,2214.8,2214.7,3.29]
[1625119243474,0.11303588,2214.8,2214.7,9.91274908]
[1625119243676,0.11303588,2214.8,2214.7,12.88887049]
[1625119243781,0.11303588,2214.8,2214.7,17.89887049]
[1625119243975,0.11303588,2214.8,2214.7,18.09887049]
[1625119244077,0.006,2216.1,2214.7,18.09887049]
[1625119244078,0.006,2216.1,2215.3,6.76819]
[1625119244175,0.006,2216.1,2215.3,11.60759]
[1625119244281,0.006,2216.1,2215.4,3.43]
[1625119244384,0.006,2216.1,2215.5,6.15901889]
[1625119244579,0.006,2216.1,2215.6,0.14]
[1625119245032,0.006,2216.1,2215.6,9.50655326]
[1625119245131,0.006,2216.1,2215.7,0.04]
[1625119245234,0.006,2216.1,2215.6,11.18687899]
[1625119245337,0.006,2216.1,2215.6,4.6558]
[1625119245430,0.006,2216.1,2215.7,0.14]
[1625119246332,0.006,2216.1,2215.8,6.7675]
[1625119246537,0.006,2216.1,2215.9,0.14]
[1625119246640,0.006,2216.1,2215.9,6.08498282]
[1625119246785,0.006,2216.1,2216.0,13.54]
[1625119246985,0.006,2216.1,2216.0,13.68]
[1625119247423,0.006,2216.1,2216.0,6.36407069]
[1625119247525,0.006,2216.1,2216.0,6.26703258]
[1625119247627,0.006,2216.1,2216.0,13.03320258]
[1625119247827,0.006,2216.1,2216.0,21.03320258]
[1625119248128,0.006,2216.1,2216.0,28.49617]
[1625119248225,0.006,2216.1,2216.0,14.94617]
[1625119248326,0.006,2216.1,2216.0,6.94617]
[1625119248962,0.006,2216.1,2216.0,16.87100861]
[1625119249053,0.006,2216.1,2216.0,16.87537]
[1625119249154,0.006,2216.1,2216.0,26.13117]
[1625119249328,0.006,2216.1,2216.0,21.27717]
[1625119249831,0.006,2216.1,2216.0,27.33320391]
[1625119250829,0.006,2216.1,2216.0,21.27717]
[1625119251029,0.006,2216.1,2216.0,27.07717]
[1625119251133,0.006,2216.1,2216.0,12.02137]
[1625119251230,0.006,2216.1,2216.0,20.91395708]
[1625119254380,0.006,2216.1,2216.0,14.87537]
[1625119255381,0.006,2216.1,2216.0,10.77537]
[1625119255681,2.8076189,2216.2,2216.1,15.7]
[1625119255786,2.8076189,2216.2,2216.1,21.91431296]
[1625119255883,2.8076189,2216.2,2216.1,22.25431296]
[1625119256299,2.8076189,2216.2,2216.1,30.25431296]
[1625119256599,2.8076189,2216.2,2216.1,22.25431296]
[1625119256998,2.8076189,2216.2,2216.1,30.25431296]
[1625119257299,2.8076189,2216.2,2216.1,14.55431296]
[1625119259580,2.8076189,2216.2,2216.1,17.84431296]
[1625119259679,2.7076189,2216.2,2216.1,20.43878437]
[1625119259886,0.03820208,2216.2,2216.1,42.33878437]
[1625119259981,2.08e-06,2216.2,2216.1,42.33878437]
[1625119260690,12.758,2217.9,2216.9,3.38107]
[1625119260790,12.758,2217.9,2217.0,0.08377243]
[1625119260791,2.0,2217.9,2217.0,0.08377243]
[1625119260891,2.0,2217.9,2217.1,5.01]
[1625119260991,2.0,2217.9,2217.2,6.09363663]
[1625119261088,2.0,2217.9,2217.2,6.21813404]
[1625119261587,2.0,2217.9,2217.2,0.14]
[1625119262293,20.657,2218.2,2217.3,9.01589]
[1625119262392,10.7473,2218.2,2217.3,9.11589]
[1625119262493,10.7473,2218.2,2217.4,6.4300495]
[1625119262837,0.11154141,2218.0,2217.4,6.4300495]
[1625119263132,0.11154141,2218.0,2217.5,3.38046]
[1625119263233,0.11154141,2218.0,2217.6,6.23924273]
[1625119263333,0.11154141,2218.0,2217.6,6.37924273]
[1625119263535,0.11154141,2218.0,2217.8,6.11654944]
[1625119263784,0.11154141,2218.0,2217.9,0.2]
[1625119264210,0.11154141,2218.0,2217.8,6.12790129]
[1625119264308,0.11154141,2218.0,2217.8,0.14]
[1625119264508,0.11154141,2218.0,2217.5,3.38046]
[1625119264609,0.11154141,2218.0,2217.5,0.14]
[1625119264709,0.11154141,2218.0,2217.4,12.41402]
[1625119264710,0.11154141,2218.0,2217.4,9.01402]
[1625119264908,0.11154141,2218.0,2217.3,9.01589]
[1625119265687,0.11154141,2218.0,2217.4,0.14]
[1625119265886,0.11154141,2218.0,2217.4,6.37212886]
[1625119265985,0.11154141,2218.0,2217.4,0.14]
[1625119267735,5.12154141,2218.0,2217.4,0.14]
[1625119267839,0.11154141,2218.0,2217.4,0.14]
[1625119268036,5.12154141,2218.0,2217.4,0.14]
[1625119268142,5.12154141,2218.0,2217.0,5.83781428]
[1625119268238,21.38147697,2217.9,2216.9,12.31748]
[1625119268339,5.01,2217.7,2216.9,9.01748]
[1625119268594,4.47115132,2218.0,2217.0,0.14]
[1625119268694,4.47115132,2218.0,2217.0,0.34]
[1625119268790,2.33164141,2218.0,2217.0,0.34]
[1625119269086,2.33164141,2218.0,2217.1,0.06]
[1625119269288,2.33164141,2218.0,2217.2,0.14]
[1625119269389,1.39854141,2218.0,2217.2,0.14]
[1625119269490,0.11154141,2218.0,2217.2,0.14]
[1625119270028,0.11154141,2218.0,2217.2,6.85794015]
[1625119270230,0.11154141,2218.0,2217.3,0.06]
[1625119270430,0.11154141,2218.0,2217.4,7.08178]
[1625119271638,0.11154141,2218.0,2217.4,0.14]
[1625119271736,0.11154141,2218.0,2217.0,6.69570651]
[1625119271847,0.11154141,2218.0,2217.0,0.14]
[1625119273053,0.11154141,2218.0,2217.0,6.9034]
[1625119273553,5.12154141,2218.0,2217.0,6.9034]
[1625119273754,6.3914106,2217.9,2217.0,6.9034]
[1625119273856,5.12154141,2218.0,2217.0,6.9034]
[1625119274084,20.12154141,2218.0,2217.0,6.9034]
[1625119274183,20.12154141,2218.0,2217.0,6.7634]
[1625119274386,6.46105818,2217.9,2217.0,6.7634]
[1625119274482,4.6433,2217.9,2217.0,6.7634]
[1625119274583,26.11304326,2217.9,2217.0,6.7634]
[1625119274687,26.03689074,2217.9,2217.0,6.7634]
[1625119275385,11.03689074,2217.9,2217.0,6.7634]
[1625119275684,11.03689074,2217.9,2217.1,0.12]
[1625119275786,26.03689074,2217.9,2216.9,9.01748]
[1625119276634,11.03689074,2217.9,2217.2,6.76345]
[1625119276832,4.6433,2217.9,2217.2,6.76345]
[1625119276931,6.45954141,2218.0,2217.2,6.76345]
[1625119277034,5.12154141,2218.0,2217.2,6.76345]
[1625119277235,5.12154141,2218.0,2217.2,10.14527]
[1625119277337,5.12154141,2218.0,2217.3,0.06]
[1625119278036,5.12154141,2218.0,2217.5,3.38156]
[1625119278690,0.11154141,2218.0,2217.5,3.38156]
[1625119280723,0.11154141,2218.0,2217.5,10.14415]
[1625119280838,0.11154141,2218.0,2217.6,0.08]
[1625119281037,0.11154141,2218.0,2217.5,10.14415]
[1625119281439,0.11154141,2218.0,2217.5,3.38156]
[1625119283284,0.11154141,2218.0,2217.5,10.14422]
[1625119286291,0.11154141,2218.0,2217.5,13.52535]
[1625119286392,0.11154141,2218.0,2217.5,12.85621788]
[1625119286490,0.11154141,2218.0,2217.5,6.76269]
[1625119286591,0.11154141,2218.0,2217.6,0.16]
[1625119286990,0.06154141,2218.0,2217.6,0.16]
[1625119287392,0.06154141,2218.0,2217.7,6.76217]
[1625119287639,0.06154141,2218.0,2217.8,6.23632639]
[1625119287738,0.06154141,2218.0,2217.8,6.39632639]
[1625119287937,0.06154141,2218.0,2217.8,0.16]
[1625119288139,0.01154141,2218.0,2217.8,6.39799374]
[1625119288336,0.01154141,2218.0,2217.7,3.3808137]
[1625119288438,0.01154141,2218.0,2217.9,0.08]
[1625119288839,0.01154141,2218.0,2217.8,6.761]
[1625119290782,0.01154141,2218.0,2217.9,6.01795563]
[1625119290882,0.11152652,2218.0,2217.9,6.01795563]
[1625119290981,0.11152652,2218.0,2217.9,0.2]
[1625119291982,0.11152652,2218.0,2217.9,6.35123578]
[1625119292185,0.11152652,2218.0,2217.9,0.2]
[1625119292388,0.11152652,2218.0,2217.8,6.761]
[1625119292786,0.11152652,2218.0,2217.7,3.3808137]
[1625119292988,0.06152652,2218.0,2217.6,4.50802]
[1625119293488,0.06152652,2218.0,2217.6,10.55782642]
[1625119293685,0.06152652,2218.0,2217.6,4.50802]
[1625119294134,6.82441652,2218.0,2217.6,4.50802]
[1625119296389,6.87442248,2218.0,2217.6,4.50802]
[1625119298238,0.11153248,2218.0,2217.6,4.50802]
[1625119298336,0.11153248,2218.0,2217.7,0.12]
[1625119298645,0.11153248,2218.0,2217.6,4.50802]
[1625119299283,5.12153248,2218.0,2217.6,4.50802]
[1625119299382,6.76312,2217.9,2217.6,4.50802]
[1625119299483,5.12153248,2218.0,2217.6,4.50802]
[1625119299885,0.11153248,2218.0,2217.6,4.50802]
[1625119302897,6.87425248,2218.0,2217.6,4.50802]
[1625119302992,0.11153248,2218.0,2217.6,4.50802]
[1625119304431,6.76311,2217.9,2217.6,4.50802]
[1625119306291,0.11153248,2218.0,2217.6,4.50802]
[1625119307391,6.87425248,2218.0,2217.6,4.50802]
[1625119307835,0.11153248,2218.0,2217.6,4.50802]
[1625119308738,5.12153248,2218.0,2217.6,4.50802]
[1625119309473,6.76301,2217.9,2217.6,4.50802]
[1625119310091,0.11153248,2218.0,2217.6,4.50802]
[1625119310182,0.11153248,2218.0,2217.7,0.06]
[1625119310283,5.07153248,2218.0,2217.7,0.06]
[1625119310384,5.07153248,2218.0,2217.6,4.50802]
[1625119310484,6.76292,2217.9,2217.6,4.50802]
[1625119310984,21.76292,2217.9,2217.6,4.50802]
[1625119311087,5.01,2217.7,2217.6,4.50802]
[1625119311184,5.01,2217.7,2217.2,4.50833]
[1625119311284,6.67897928,2217.6,2217.2,4.50833]
[1625119311385,11.68897928,2217.6,2217.2,4.50833]
[1625119311586,6.35216279,2217.4,2217.2,4.50833]
[1625119311689,10.71762874,2217.4,2216.8,4.50937]
[1625119311785,25.71762874,2217.4,2216.8,7e-05]
[1625119311986,2.7,2217.3,2216.1,20.9304]
[1625119312085,2.7,2217.3,2216.4,3.38289]
[1625119312086,27.32716719,2217.2,2216.4,3.38289]
[1625119312185,5.01,2217.1,2216.4,3.38289]
[1625119312354,11.69249997,2217.0,2216.4,3.38289]
[1625119312449,15.0,2216.9,2215.8,11.27327]
[1625119312548,6.76708,2216.5,2215.7,16.90004]
[1625119312651,12.7239637,2216.8,2215.7,10.1331]
[1625119312652,0.02207266,2216.6,2215.7,10.1331]
[1625119312747,6.86425418,2216.6,2215.7,10.1331]
[1625119312853,6.86425418,2216.6,2215.5,1.98]
[1625119312854,22.00023821,2216.6,2215.5,1.98]
[1625119312949,5.01,2216.4,2215.4,9.02287]
[1625119313047,6.85134974,2216.3,2215.4,9.02287]
[1625119313148,6.85134974,2216.3,2215.5,0.1]
[1625119313349,4.5391,2216.4,2215.5,0.1]
[1625119313448,3.4,2216.0,2215.5,0.1]
[1625119313551,3.4,2216.0,2215.2,6.15126774]
[1625119313748,3.4,2216.0,2215.1,14.66033]
[1625119313853,9.59653326,2216.0,2215.1,11.27655]
[1625119314051,3.4,2216.0,2215.1,11.27655]
[1625119314448,3.4,2216.0,2215.2,6.76811]
[1625119314587,3.4,2216.0,2215.2,13.04270962]
[1625119314691,3.4,2216.0,2215.3,0.1]
[1625119315289,3.4,2216.0,2215.2,13.04270962]
[1625119315390,3.4,2216.0,2215.2,6.76811]
[1625119315489,3.4,2216.0,2215.0,13.35486791]
[1625119315590,9.91672473,2216.0,2215.0,6.90862]
[1625119315689,9.91672473,2216.0,2215.0,6.76862]
[1625119315791,9.8811447,2216.0,2215.0,6.76862]
[1625119315893,3.4,2216.0,2215.0,6.76862]
[1625119315989,3.4,2216.0,2215.1,6.35155898]
[1625119316194,3.4,2216.0,2215.1,6.39155898]
[1625119316490,3.4,2216.0,2215.1,0.04]
[1625119316592,3.4,2216.0,2215.1,6.80825]
[1625119316692,3.4,2216.0,2215.2,0.04]
[1625119316845,3.4,2216.0,2215.2,6.15124156]
[1625119317241,3.4,2216.0,2215.2,0.04]
[1625119317646,10.16866,2216.0,2215.0,0.14]
[1625119318147,10.16866,2216.0,2214.9,6.79120369]
[1625119318346,5.01,2215.8,2214.9,6.79120369]
[1625119318456,4.8181,2215.8,2214.9,6.79120369]
[1625119318549,4.8181,2215.8,2214.8,9.1647]
[1625119318751,5.01,2215.6,2214.8,0.14]
[1625119318849,5.01,2215.6,2214.6,6.64773643]
[1625119318950,6.87304666,2215.5,2214.5,0.14]
[1625119319099,6.82298983,2215.5,2214.5,0.14]
[1625119319197,7.29345043,2215.6,2214.4,6.07101582]
[1625119319398,7.29345043,2215.6,2214.2,6.76989547]
[1625119319500,6.59408273,2215.5,2214.2,6.62477887]
[1625119319598,0.01665053,2215.4,2214.2,6.62477887]
[1625119320400,6.7705,2215.3,2214.2,6.62477887]
[1625119320500,11.4748,2215.3,2214.2,6.62477887]
[1625119322211,11.4748,2215.3,2214.2,13.39504887]
[1625119322413,11.4748,2215.3,2214.2,21.39504887]
[1625119322511,11.4748,2215.3,2214.2,6.62477887]
[1625119322816,11.4748,2215.3,2214.2,0.14]
[1625119322917,6.89179766,2215.2,2214.2,0.14]
[1625119323019,21.89179766,2215.2,2214.0,6.36337129]
[1625119323117,3.4,2214.7,2213.9,10.5225]
[1625119323216,3.3687,2214.7,2213.8,9.8136]
[1625119323319,3.3687,2214.7,2213.8,15.87017144]
[1625119323592,10.14094,2214.7,2213.7,6.09196058]
[1625119323694,3.3687,2214.7,2213.7,6.15196058]
[1625119323790,3.3687,2214.7,2213.2,10.3011]
[1625119323791,0.69780983,2214.7,2213.8,0.32]
[1625119323890,0.69780983,2214.7,2213.8,0.18]
[1625119323992,0.69780983,2214.7,2213.9,0.14]
[1625119324622,0.69780983,2214.7,2214.0,5.01]
[1625119324718,0.69780983,2214.7,2214.0,4.96]
[1625119324819,1.4566,2214.8,2214.0,4.96]
[1625119324922,9.02904,2215.1,2214.0,4.96]
[1625119325019,9.02904,2215.1,2214.1,6.28288656]
[1625119325121,6.77132,2215.0,2214.1,6.28288656]
[1625119325523,0.14,2215.4,2214.1,6.28288656]
[1625119325625,9.02699,2215.6,2214.2,0.26]
[1625119325724,13.82699,2215.6,2214.2,0.26]
[1625119325846,11.02699,2215.6,2214.2,0.26]
[1625119326048,11.02699,2215.6,2214.3,5.01]
[1625119326245,11.02699,2215.6,2214.4,6.73526025]
[1625119326450,6.77005,2215.4,2214.4,6.73526025]
[1625119326648,0.11169649,2215.0,2214.4,6.73526025]
[1625119326850,0.11169649,2215.0,2214.4,0.14]
[1625119327049,0.11169649,2215.0,2214.4,11.60712217]
[1625119327149,0.11169649,2215.0,2214.5,0.16]
[1625119327353,0.11169649,2215.0,2214.5,0.3]
[1625119327651,0.11169649,2215.0,2214.5,0.14]
[1625119328340,0.11169649,2215.0,2214.5,5.1567]
[1625119328443,0.11169649,2215.0,2214.6,11.36983295]
[1625119328539,0.11169649,2215.0,2214.6,18.02948101]
[1625119328636,0.11169649,2215.0,2214.7,0.14]
[1625119329038,0.11169649,2215.0,2214.8,0.08]
[1625119329237,0.11169649,2215.0,2214.9,0.14]
[1625119329492,0.11169649,2215.0,2214.7,0.14]
[1625119334594,0.11169649,2215.0,2214.4,0.14]
[1625119335937,0.11169649,2215.0,2214.4,0.2]
[1625119336289,0.11169649,2215.0,2214.4,0.14]
[1625119339000,6.8256996,2215.6,2214.4,0.14]
[1625119339098,6.50471621,2215.8,2214.4,10.00504079]
[1625119339400,6.76936,2215.6,2214.5,0.06]
[1625119339405,6.76936,2215.6,2214.6,5.01]
[1625119339587,6.76936,2215.6,2214.7,0.14]
[1625119339789,6.76936,2215.6,2214.7,5.89659126]
[1625119339890,6.76936,2215.6,2214.7,0.14]
[1625119340891,5.01,2215.4,2214.7,0.14]
[1625119340992,9.02635,2215.7,2214.7,0.14]
[1625119341618,6.51052733,2215.6,2214.7,0.14]
[1625119342215,0.05,2215.0,2214.7,0.14]
[1625119343273,0.05,2215.0,2214.8,0.1]
[1625119343370,0.05,2215.0,2214.7,0.14]
[1625119343471,0.05,2215.0,2214.3,5.01]
[1625119343570,0.05,2215.0,2214.8,0.14]
[1625119343770,0.05,2215.0,2214.5,0.14]
[1625119346329,3.67343206,2214.9,2214.5,0.14]
[1625119346517,3.67343206,2214.9,2214.6,0.12]
[1625119347619,3.62343206,2214.9,2214.6,0.12]
[1625119348716,3.62343206,2214.9,2214.7,0.18]
[1625119348818,3.38523,2214.9,2214.8,24.1]
[1625119348920,0.3083167,2215.5,2214.8,31.72695552]
[1625119349020,20.3993,2215.9,2214.8,31.72695552]
[1625119349122,20.3993,2215.9,2215.0,3.29]
[1625119349219,20.3993,2215.9,2215.0,12.8028]
[1625119349320,20.3993,2215.9,2215.3,5.01]
[1625119349416,13.4677,2215.9,2215.3,5.01]
[1625119349516,3.3837,2215.9,2215.4,0.14]
[1625119349617,3.3837,2215.9,2215.1,6.9193637]
[1625119349715,3.3837,2215.9,2215.5,0.14]
[1625119352025,6.76853,2215.8,2215.5,0.14]
[1625119353372,3.3837,2215.9,2215.5,0.14]
[1625119357475,10.1518,2215.9,2215.5,0.14]
[1625119357674,10.1518,2215.9,2215.6,0.06]
[1625119357874,10.1518,2215.9,2215.5,0.14]
[1625119358584,3.3837,2215.9,2215.5,0.14]
[1625119358680,3.3837,2215.9,2215.2,6.28104771]
[1625119358781,3.3837,2215.9,2215.2,0.14]
[1625119360449,10.152,2215.9,2215.2,6.9083]
[1625119360750,10.152,2215.9,2215.3,0.08]
[1625119361054,10.152,2215.9,2215.2,6.9083]
[1625119361151,3.3837,2215.9,2215.2,0.14]
[1625119361452,3.3837,2215.9,2215.0,6.38642718]
[1625119362435,6.76915,2215.6,2215.0,13.15512718]
[1625119362534,3.38445,2215.5,2215.0,13.15512718]
[1625119362732,3.38445,2215.5,2215.0,6.7687]
[1625119363933,3.38445,2215.5,2215.1,6.10701396]
[1625119364038,3.38445,2215.5,2214.9,6.57598678]
[1625119364203,3.38445,2215.5,2215.2,0.34]
[1625119364304,3.38445,2215.5,2215.2,0.14]
[1625119365605,3.38445,2215.5,2215.2,0.03461798]
[1625119366873,3.38445,2215.5,2215.2,12.82338826]
[1625119367074,3.38445,2215.5,2215.2,6.80305798]
[1625119367273,3.38445,2215.5,2215.3,0.14]
[1625119367374,3.38445,2215.5,2215.3,6.38932083]
[1625119367474,10.469,2216.0,2215.4,0.14]
[1625119367877,10.469,2216.0,2215.4,0.18]
[1625119367977,10.469,2216.0,2215.4,0.14]
[1625119368177,9.8479,2216.2,2215.7,6.76693]
[1625119368278,3.38323,2216.0,2215.4,18.23496]
[1625119368378,3.38323,2216.0,2215.5,6.71451284]
[1625119368480,3.38323,2216.0,2215.5,6.93451284]
[1625119369476,3.38323,2216.0,2215.7,9.02138]
[1625119369673,3.38323,2216.0,2215.8,0.14]
[1625119371152,3.38323,2216.0,2215.4,3.6]
[1625119371252,3.38323,2216.0,2215.5,0.14]
[1625119371352,3.38323,2216.0,2215.2,6.35677093]
[1625119371450,3.38323,2216.0,2215.5,0.14]
[1625119371853,3.38413,2215.7,2215.2,6.35677093]
[1625119371954,10.153,2215.7,2215.2,6.35677093]
[1625119372055,10.153,2215.7,2215.1,6.90853]